fUST/lending_fUST_20240908
["ID","MTS","AMOUNT","RATE_DAILY","PERIOD"]
[337529132,1725754238807,-561.41961439,0.00024599,2]
[337529133,1725754238816,-500.0,0.00024599,2]
[337529134,1725754238826,-500.0,0.00024599,2]
[337529135,1725754238836,-321.57799853,0.00024599,2]
[337529136,1725754238845,-500.0,0.00024599,2]
[337529137,1725754238855,-500.0,0.00024599,2]
[337529138,1725754238867,-500.0,0.00024599,2]
[337529139,1725754238879,-3000.0,0.000246,2]
[337529140,1725754238888,-7995.37053008,0.000246,2]
[337529141,1725754238900,-1178.89483085,0.000246,2]
[337529142,1725754238911,-38.59834023,0.000246,2]
[337529143,1725754238922,-796.86075855,0.000246,2]
[337529151,1725754240697,-1273.87581624,0.000246,2]
[337529152,1725754240706,-67797.51292868,0.000246,3]
[337529195,1725755301563,10075.41951878,0.000125,2]
[337529234,1725755432493,-300.0,0.00022616,2]
[337529236,1725755432503,-20183.99661892,0.00022617,2]
[337529264,1725755440829,-4716.00338108,0.00022617,2]
[337529265,1725755440840,-245.6476244,0.00022981,2]
[337529266,1725755440850,-169.60454,0.00022989,2]
[337529267,1725755440860,-250.0,0.00023153,2]
[337529268,1725755440869,-250.0,0.00023216,2]
[337529269,1725755440879,-250.0,0.0002328,2]
[337529270,1725755440888,-250.0,0.00023343,2]
[337529271,1725755440898,-250.0,0.00023407,2]
[337529272,1725755440908,-250.0,0.0002347,2]
[337529273,1725755440918,-250.0,0.00023534,2]
[337529274,1725755440928,-250.0,0.00023597,2]
[337529275,1725755440938,-250.0,0.00023661,2]
[337529276,1725755440948,-167.856,0.00023677,4]
[337529277,1725755440958,-250.0,0.00023724,2]
[337529278,1725755440969,-153.0,0.00023741,2]
[337529279,1725755440978,-250.0,0.00023788,2]
[337529280,1725755440988,-250.0,0.00023851,2]
[337529281,1725755440998,-250.0,0.00023915,2]
[337529282,1725755441008,-250.0,0.00023978,2]
[337529283,1725755441020,-500.0,0.0002403,2]
[337529284,1725755441030,-500.0,0.0002403,2]
[337529285,1725755441040,-500.0,0.0002403,2]
[337529286,1725755441050,-500.0,0.0002403,2]
[337529287,1725755441061,-500.0,0.0002403,2]
[337529288,1725755441072,-500.0,0.0002403,2]
[337529289,1725755441083,-500.0,0.0002403,2]
[337529290,1725755441094,-195.58598867,0.0002403,2]
[337529291,1725755441107,-304.41401133,0.0002403,2]
[337529292,1725755441117,-500.0,0.0002403,2]
[337529293,1725755441127,-500.0,0.0002403,2]
[337529294,1725755441136,-500.0,0.0002403,2]
[337529295,1725755441147,-500.0,0.0002403,2]
[337529296,1725755441156,-500.0,0.0002403,2]
[337529297,1725755441166,-500.0,0.0002403,2]
[337529298,1725755441175,-500.0,0.0002403,2]
[337529299,1725755441185,-286.17836108,0.0002403,2]
[337529300,1725755441194,-500.0,0.0002403,2]
[337529301,1725755441203,-500.0,0.0002403,2]
[337529302,1725755441213,-250.0,0.00024042,2]
[337529303,1725755441223,-250.0,0.00024105,2]
[337529304,1725755441234,-250.0,0.00024169,2]
[337529305,1725755441244,-250.0,0.00024233,2]
[337529306,1725755441254,-250.0,0.00024296,2]
[337529307,1725755441264,-250.0,0.0002436,2]
[337529308,1725755441274,-1000.0,0.0002447,2]
[337529309,1725755441284,-1291.84978347,0.00024481,2]
[337529310,1725755441293,-150.0,0.00024517,2]
[337529311,1725755441303,-523.0,0.00024517,2]
[337529312,1725755441312,-2929.57484416,0.00024517,2]
[337529313,1725755441327,-4833.98615584,0.00024517,2]
[337529314,1725755441336,-153.0,0.00024559,2]
[337529315,1725755441346,-153.0,0.00024559,2]
[337529316,1725755441356,-153.0,0.00024559,2]
[337529317,1725755441366,-392.99373007,0.00024559,2]
[337529318,1725755441376,-500.0,0.00024559,2]
[337529319,1725755441386,-500.0,0.00024559,2]
[337529320,1725755441396,-325.10459898,0.00024559,2]
[337529321,1725755441406,-500.0,0.00024559,2]
[337529322,1725755441416,-500.0,0.00024559,2]
[337529323,1725755441427,-7774.51551511,0.0002456,3]
[337529324,1725755441447,-69071.38874492,0.0002456,3]
[337529327,1725755443532,-12264.43799009,0.0002456,3]
[337529328,1725755443642,-89364.14220874,0.0002456,3]
[337529337,1725755446624,-797.8,0.0002456,3]
[337529338,1725755446638,-11655.65720638,0.0002456,3]
[337529341,1725755554958,500.0,0.00027,120]
[337529342,1725755619009,503.79630603,0.00027,120]
[337529350,1725756140349,500.0,0.00027,120]
[337529373,1725756576162,500.0,0.00027,120]
[337529393,1725756631670,-171.258469,0.00022634,2]
[337529394,1725756631680,-171.164142,0.00022801,2]
[337529395,1725756631690,-110.94409012,0.00022838,2]
[337529396,1725756631703,-189.05590988,0.00022838,2]
[337529397,1725756631713,-504.35834571,0.00022839,2]
[337529413,1725756637796,-9407.33343696,0.00022839,2]
[337529414,1725756637808,-822.74162539,0.00022839,2]
[337529439,1725756639949,-14165.56659194,0.00022839,2]
[337529441,1725756639961,-250.0,0.00023199,2]
[337529443,1725756639970,-250.0,0.00023262,2]
[337529445,1725756639980,-250.0,0.00023326,2]
[337529447,1725756639989,-250.0,0.00023389,2]
[337529449,1725756639998,-250.0,0.00023453,2]
[337529451,1725756640009,-250.0,0.00023517,2]
[337529453,1725756640020,-250.0,0.0002358,2]
[337529455,1725756640031,-250.0,0.00023644,2]
[337529457,1725756640042,-250.0,0.00023707,2]
[337529459,1725756640052,-250.0,0.00023771,2]
[337529461,1725756640063,-250.0,0.00023835,2]
[337529463,1725756640072,-250.0,0.00023898,2]
[337529465,1725756640082,-167.856,0.000239,5]
[337529467,1725756640094,-250.0,0.00023962,2]
[337529468,1725756640105,-250.0,0.00024026,2]
[337529469,1725756640115,-250.0,0.00024089,2]
[337529470,1725756640126,-250.0,0.00024153,2]
[337529471,1725756640135,-250.0,0.00024216,2]
[337529472,1725756640145,-500.0,0.00024243,2]
[337529473,1725756640155,-420.68648456,0.00024243,2]
[337529474,1725756640164,-5399.59392841,0.00024244,2]
[337529475,1725756640174,-250.0,0.0002428,2]
[337529476,1725756640183,-250.0,0.00024344,2]
[337529477,1725756640193,-250.0,0.00024407,2]
[337529478,1725756640202,-1000.0,0.0002443,2]
[337529479,1725756640211,-1301.74916472,0.00024432,2]
[337529480,1725756640221,-275.09561105,0.00024519,2]
[337529481,1725756640230,-500.0,0.00024519,2]
[337529482,1725756640240,-500.0,0.00024519,2]
[337529483,1725756640249,-627.57321928,0.00024519,2]
[337529484,1725756640258,-39213.26774496,0.0002452,3]
[337529485,1725756640271,-11069.25393788,0.0002452,3]
[337529535,1725756642793,-89364.14220874,0.0002452,3]
[337529536,1725756642805,-836.63009517,0.0002452,3]
[337529537,1725756642854,-1031.13,0.0002452,3]
[337529575,1725756645994,-80381.38408369,0.0002452,3]
[337529585,1725756646107,-5498.69266353,0.0002452,3]
[337529630,1725757286706,500.0,0.00027,120]
[337529635,1725757505554,155.70934122,0.0002,15]
[337529668,1725757831913,-300.0,0.00023145,2]
[337529670,1725757831923,-120.76752126,0.00023146,2]
[337529716,1725757837972,-1453.10846823,0.00023146,2]
[337529813,1725757840266,-500.0,0.00023146,2]
[337529814,1725757840281,-22826.12401051,0.00023146,2]
[337529815,1725757840290,-250.0,0.00023426,2]
[337529816,1725757840302,-250.0,0.00023491,2]
[337529817,1725757840312,-250.0,0.00023555,2]
[337529818,1725757840323,-1022.011487,0.000236,2]
[337529819,1725757840333,-250.0,0.00023619,2]
[337529820,1725757840344,-250.0,0.00023683,2]
[337529821,1725757840353,-250.0,0.00023748,2]
[337529822,1725757840363,-250.0,0.00023812,2]
[337529823,1725757840372,-250.0,0.00023876,2]
[337529824,1725757840382,-250.0,0.0002394,2]
[337529825,1725757840393,-153.0,0.00024,2]
[337529826,1725757840405,-250.0,0.00024005,2]
[337529827,1725757840415,-167.856,0.0002403,5]
[337529828,1725757840426,-250.0,0.00024069,2]
[337529829,1725757840435,-1000.0,0.000241,2]
[337529830,1725757840444,-250.0,0.00024133,2]
[337529831,1725757840454,-250.0,0.00024197,2]
[337529832,1725757840462,-250.0,0.00024262,2]
[337529833,1725757840472,-250.0,0.00024326,2]
[337529834,1725757840481,-500.0,0.00024333,2]
[337529835,1725757840491,-420.68648456,0.00024333,2]
[337529836,1725757840502,-6009.68292506,0.00024334,2]
[337529837,1725757840511,-250.0,0.0002439,2]
[337529838,1725757840521,-1000.0,0.00024412,2]
[337529839,1725757840530,-250.0,0.00024454,2]
[337529840,1725757840540,-1301.74916472,0.00024461,2]
[337529841,1725757840549,-3219.280227,0.000245,2]
[337529842,1725757840558,-275.09561105,0.00024501,2]
[337529843,1725757840572,-500.0,0.00024501,2]
[337529844,1725757840582,-500.0,0.00024501,2]
[337529845,1725757840592,-627.57321928,0.00024501,2]
[337529846,1725757840602,-11132.7630238,0.00024502,3]
[337530637,1725757909767,1452.6124726,0.00038399,30]
[337530665,1725758914779,10079.867975,0.0002,2]
[337530666,1725758920787,4302.12704122,0.0002,2]
[337530667,1725758921667,20806.3048956,0.0002,2]
[337530668,1725758923809,176.35041333,0.0002,2]
[337530719,1725759038289,-302.36509981,0.00022,2]
[337530721,1725759038299,-302.36509981,0.0002222,2]
[337530723,1725759038309,-302.36509981,0.0002244,2]
[337530725,1725759038319,-302.36509981,0.0002266,2]
[337530727,1725759038329,-233.47255822,0.00022872,2]
[337530730,1725759038339,-300.0,0.00022872,2]
[337530732,1725759038349,-24900.0,0.00022873,2]
[337530733,1725759038358,-302.36509981,0.0002288,2]
[337530735,1725759038367,-453.54764972,0.000231,4]
[337530737,1725759038377,-171.258469,0.00023198,2]
[337530740,1725759038387,-250.0,0.000233,2]
[337530741,1725759038396,-465.00069783,0.00023305,2]
[337530744,1725759038407,-453.54764972,0.0002332,4]
[337530746,1725759038417,-250.0,0.00023364,2]
[337530748,1725759038427,-250.0,0.00023427,2]
[337530750,1725759038437,-250.0,0.00023491,2]
[337530752,1725759038449,-453.54764972,0.0002354,4]
[337530754,1725759038466,-250.0,0.00023555,2]
[337530756,1725759038477,-250.0,0.00023619,2]
[337530758,1725759038487,-250.0,0.00023683,2]
[337530760,1725759038496,-250.0,0.00023747,2]
[337530762,1725759038505,-453.54764972,0.0002376,4]
[337530764,1725759038515,-250.0,0.00023811,2]
[337530766,1725759038526,-250.0,0.00023875,2]
[337530768,1725759038536,-250.0,0.00023939,2]
[337530770,1725759038546,-453.54764972,0.0002398,4]
[337530772,1725759038557,-277.38806072,0.00023999,2]
[337530775,1725759038567,-500.0,0.00023999,2]
[337530777,1725759038576,-500.0,0.00023999,2]
[337530778,1725759038585,-646.35594938,0.00023999,2]
[337530780,1725759038594,-486.42221279,0.00023999,2]
[337530782,1725759038603,-500.0,0.00023999,2]
[337530784,1725759038613,-51912.17412479,0.00024,7]
[337530787,1725759038627,-48087.82587521,0.00024,7]
[337530789,1725759038637,-250.0,0.00024002,2]
[337530791,1725759038646,-250.0,0.00024066,2]
[337530793,1725759038656,-250.0,0.0002413,2]
[337530795,1725759038665,-167.856,0.00024169,6]
[337530797,1725759038674,-250.0,0.00024194,2]
[337530799,1725759038684,-250.0,0.00024258,2]
[337530801,1725759038693,-153.0,0.00024285,2]
[337530803,1725759038703,-153.0,0.00024285,2]
[337530805,1725759038715,-208.1608168,0.00024285,2]
[337530807,1725759038724,-208.1608168,0.00024285,2]
[337530809,1725759038733,-208.1608168,0.00024285,2]
[337530811,1725759038743,-208.1608168,0.00024285,2]
[337530813,1725759038753,-153.0,0.00024285,2]
[337530815,1725759038764,-250.0,0.00024322,2]
[337530817,1725759038777,-250.0,0.00024386,2]
[337530819,1725759038787,-1000.0,0.00024393,2]
[337530821,1725759038797,-1539.5834196,0.00024421,2]
[337530823,1725759038807,-250.0,0.0002445,2]
[337530825,1725759038818,-34383.8484263,0.0002447,3]
[337530827,1725759038827,-465.00003489,0.00024471,2]
[337530829,1725759038840,-61363.8744858,0.0002448,2]
[337530832,1725759038851,-151.0,0.0002448,7]
[337530834,1725759038861,-151.0,0.0002448,7]
[337530836,1725759038871,-151.0,0.0002448,7]
[337530838,1725759038884,-154.21542,0.0002448,7]
[337530840,1725759038894,-154.21542,0.0002448,7]
[337530842,1725759038905,-154.232911,0.0002448,7]
[337530845,1725759038916,-151.0,0.0002448,7]
[337530847,1725759038927,-151.0,0.0002448,7]
[337530849,1725759038939,-151.0,0.00024482,7]
[337530851,1725759038952,-151.0,0.00024482,7]
[337530853,1725759038963,-154.21542,0.00024482,7]
[337530856,1725759038974,-154.21542,0.00024482,7]
[337530858,1725759038984,-172.273931,0.00024482,7]
[337530860,1725759038995,-151.0,0.00024482,7]
[337530862,1725759039004,-24073.22296653,0.00024483,3]
[337530865,1725759039029,-750.0,0.00024483,3]
[337531012,1725759040520,-158.896775,0.0002448,7]
[337531014,1725759040531,-158.896775,0.00024482,7]
[337531016,1725759040542,-1396.1905114,0.00024483,3]
[337531024,1725759040605,-32322.54423647,0.00024483,3]
[337531281,1725759588435,5082.43126555,0.0002,2]
[337531282,1725759627182,212.6209146,0.000269,120]
[337531283,1725759794780,3000.0,0.000191,2]
[337531284,1725759795222,4520.752999,0.0001911,2]
[337531285,1725759867570,40391.87193782,0.00038436,2]
[337531291,1725760165193,500.0,0.00027,120]
[337531301,1725760232286,-645.26340212,0.00022823,2]
[337531303,1725760232300,-1135.3,0.00022823,2]
[337531311,1725760232471,-649.44407595,0.00022823,2]
[337531314,1725760232482,-11498.47,0.00022823,2]
[337531328,1725760238518,-3938.94790064,0.00022823,2]
[337531331,1725760238531,-7032.57462129,0.00022823,2]
[337531333,1725760238541,-170.279945,0.00023203,2]
[337531334,1725760238550,-170.279945,0.00023266,2]
[337531335,1725760238560,-151.70123493,0.00023309,2]
[337531336,1725760238570,-170.279945,0.0002333,2]
[337531337,1725760238579,-170.279945,0.00023394,2]
[337531338,1725760238589,-300.0,0.00023409,2]
[337531339,1725760238598,-170.279945,0.00023457,2]
[337531340,1725760238608,-170.279945,0.00023521,2]
[337531341,1725760238619,-170.279945,0.00023584,2]
[337531342,1725760238628,-170.279945,0.00023648,2]
[337531343,1725760238637,-170.279945,0.00023712,2]
[337531344,1725760238647,-170.279945,0.00023775,2]
[337531345,1725760238657,-170.279945,0.00023839,2]
[337531346,1725760238667,-154.5487302,0.000239,2]
[337531347,1725760238676,-153.0,0.000239,2]
[337531348,1725760238686,-170.279945,0.00023903,2]
[337531350,1725760238696,-170.279945,0.00023966,2]
[337531352,1725760238706,-170.279945,0.0002403,2]
[337531354,1725760238715,-170.279945,0.00024094,2]
[337531356,1725760238725,-170.279945,0.00024157,2]
[337531358,1725760238735,-170.279945,0.00024221,2]
[337531360,1725760238744,-172.68547964,0.00024262,6]
[337531362,1725760238754,-170.279945,0.00024285,2]
[337531364,1725760238763,-170.279945,0.00024348,2]
[337531366,1725760238773,-500.0,0.00024366,2]
[337531368,1725760238783,-522.98498285,0.00024366,2]
[337531370,1725760238792,-500.0,0.00024366,2]
[337531372,1725760238801,-500.0,0.00024366,2]
[337531374,1725760238811,-500.0,0.00024366,2]
[337531376,1725760238820,-366.53577985,0.00024366,2]
[337531378,1725760238829,-6972.91837103,0.00024367,2]
[337531380,1725760238839,-1000.0,0.00024388,2]
[337531382,1725760238848,-170.279945,0.00024412,2]
[337531384,1725760238857,-194.1716425,0.00024467,2]
[337531386,1725760238866,-500.0,0.00024467,2]
[337531388,1725760238876,-500.0,0.00024467,2]
[337531390,1725760238886,-152.44916457,0.00024467,2]
[337531392,1725760238895,-32285.14493406,0.00024468,3]
[337531394,1725760238907,-409.29,0.00024468,3]
[337531396,1725760238919,-1121.22813416,0.00024468,3]
[337531416,1725760240643,-1999.98674101,0.00024468,3]
[337531417,1725760240655,-34548.62892561,0.00024468,3]
[337531418,1725760240667,-1965.16002399,0.00024468,3]
[337531419,1725760240678,-2480.28478132,0.00024468,3]
[337531420,1725760240691,-55148.66824698,0.00024468,3]
[337531438,1725760243518,-38194.00422352,0.00024468,3]
[337531439,1725760243531,-16535.20582435,0.00024468,3]
[337531440,1725760243540,-170.51863499,0.00024473,2]
[337531441,1725760243550,-178.5,0.00024473,2]
[337531442,1725760243559,-151.0,0.00024478,7]
[337531443,1725760243569,-151.0,0.00024478,7]
[337531444,1725760243579,-151.0,0.00024478,7]
[337531445,1725760243589,-310.329296,0.00024478,7]
[337531446,1725760243598,-310.329296,0.00024478,7]
[337531447,1725760243607,-151.0,0.00024478,7]
[337531448,1725760243616,-151.0,0.00024478,7]
[337531449,1725760243626,-151.0,0.00024478,7]
[337531451,1725760243635,-159.202393,0.00024478,7]
[337531452,1725760243645,-159.202393,0.00024478,7]
[337531453,1725760243655,-152.200737,0.00024478,7]
[337531454,1725760243664,-104821.418738,0.00024478,3]
[337531455,1725760243673,-62600.39539632,0.00024478,3]
[337531456,1725760243685,-27581.68128776,0.00024478,3]
[337531457,1725760243697,-567.95804862,0.00024478,3]
[337531458,1725760243708,-430.09227877,0.00024478,3]
[337531459,1725760243719,-2782.7239011,0.00024478,3]
[337531475,1725760246675,-207.7233616,0.00023678,2]
[337531476,1725760246685,-658.4566384,0.00024478,3]
[337531477,1725760393017,150.0,0.000191,2]
[337531480,1725761009663,500.0,0.00027,120]
[337531481,1725761080107,267.69135761,0.00027,120]
[337531483,1725761238744,274.0,0.00027,120]
[337531593,1725761438855,-190.0,0.000205,2]
[337531595,1725761438864,-24900.0,0.00022538,2]
[337531596,1725761438875,-260.5414515,0.00022875,2]
[337531597,1725761438886,-171.258469,0.00023125,2]
[337531599,1725761438896,-300.0,0.00023394,2]
[337531600,1725761438906,-300.0,0.00023394,2]
[337531601,1725761438917,-166.848806,0.00024236,2]
[337531602,1725761438926,-6137.39755391,0.00024236,2]
[337531603,1725761438936,-166.84880598,0.00024239,2]
[337531604,1725761438946,-166.84880598,0.00024243,2]
[337531605,1725761438955,-166.84880598,0.00024246,2]
[337531606,1725761438965,-181.62,0.00024326,3]
[337531607,1725761438974,-151.35,0.00024326,3]
[337531608,1725761438983,-454.09,0.00024326,3]
[337531609,1725761438993,-500.0,0.00024335,2]
[337531610,1725761439003,-306.71441519,0.00024335,2]
[337531611,1725761439012,-207.39286443,0.00024335,2]
[337531612,1725761439021,-47981.81593646,0.00024336,3]
[337531613,1725761439033,-3379.26480309,0.00024336,3]
[337531628,1725761441005,-55148.66824698,0.00024336,3]
[337531661,1725762445277,27587.90081114,0.0003843,30]
[337531662,1725762489574,915.60571476,0.0003843,32]
[337531663,1725762518479,229.19748427,0.0003843,5]
[337531664,1725762521153,20786.92847628,0.0002,2]
[337531742,1725763102496,3000.0,0.0003843,113]
[337531749,1725763253819,250.0,0.0003843,2]
[337531750,1725763254109,500.0,0.0003843,2]
[337531751,1725763254356,892.05401239,0.0003843,2]
[337531752,1725763293958,502.0,0.00027,120]
[337531754,1725763605951,3000.0,0.00038435,116]
[337531755,1725763654971,3000.0,0.00038435,120]
[337531808,1725763832057,-261.50707492,0.0002015,2]
[337531810,1725763832067,-191.7103772,0.00020218,2]
[337531812,1725763832076,-300.0,0.00020554,2]
[337531814,1725763832085,-7477.97345733,0.00020555,2]
[337531817,1725763832097,-2435.52,0.00020555,2]
[337531873,1725763838070,-14986.50654267,0.00020555,2]
[337531874,1725763838079,-3661.384991,0.00020596,2]
[337531875,1725763838087,-5766.0140246,0.00020871,2]
[337531876,1725763838097,-227.946706,0.00021416,2]
[337531877,1725763838106,-227.946706,0.00021475,2]
[337531878,1725763838116,-227.946706,0.00021534,2]
[337531879,1725763838125,-227.946706,0.00021593,2]
[337531880,1725763838136,-148.98600662,0.00021651,2]
[337531884,1725763840226,-78.96069938,0.00021651,2]
[337531885,1725763840237,-227.946706,0.0002171,2]
[337531886,1725763840246,-227.946706,0.00021769,2]
[337531887,1725763840258,-227.946706,0.00021828,2]
[337531888,1725763840269,-227.946706,0.00021886,2]
[337531889,1725763840279,-227.946706,0.00021945,2]
[337531890,1725763840289,-278.73,0.00022,2]
[337531891,1725763840299,-227.946706,0.00022004,2]
[337531892,1725763840308,-227.946706,0.00022063,2]
[337531893,1725763840318,-227.946706,0.00022121,2]
[337531894,1725763840327,-227.946706,0.0002218,2]
[337531895,1725763840335,-227.946706,0.00022239,2]
[337531896,1725763840346,-227.946706,0.00022297,2]
[337531897,1725763840357,-227.946706,0.00022356,2]
[337531898,1725763840368,-227.946706,0.00022415,2]
[337531899,1725763840378,-227.946706,0.00022474,2]
[337531900,1725763840389,-227.946706,0.00022532,2]
[337531901,1725763840400,-420.0,0.0002261,2]
[337531902,1725763840409,-171.258469,0.00022797,2]
[337531903,1725763840482,-280.6971419,0.00022978,2]
[337531904,1725763840493,-467.87975789,0.00023189,2]
[337531905,1725763840505,-398.8671746,0.00023278,2]
[337531906,1725763840517,-153.0,0.00023278,2]
[337531907,1725763840528,-162.6035665,0.00023278,2]
[337531908,1725763840540,-153.0,0.00023278,2]
[337531909,1725763840552,-208.1608168,0.00023378,2]
[337531910,1725763840561,-208.1608168,0.00023378,2]
[337531911,1725763840573,-208.1608168,0.00023378,2]
[337531912,1725763840585,-153.0,0.00023378,2]
[337531913,1725763840595,-153.0,0.00023378,2]
[337531914,1725763840604,-208.1608168,0.00023378,2]
[337531915,1725763840617,-208.1608168,0.00023378,2]
[337531916,1725763840626,-153.0,0.00023378,2]
[337531917,1725763840635,-153.0,0.00023378,2]
[337531918,1725763840647,-153.0,0.00023378,2]
[337531919,1725763840656,-153.0,0.00023535,2]
[337531920,1725763840665,-153.0,0.00023578,2]
[337531921,1725763840677,-153.0,0.00023578,2]
[337531922,1725763840687,-1000.0,0.00023959,2]
[337531923,1725763840699,-1670.75221562,0.00023998,2]
[337531924,1725763840711,-500.0,0.00024,2]
[337531925,1725763840722,-302.7,0.00024048,3]
[337531926,1725763840731,-564.70009064,0.00024057,2]
[337531927,1725763840744,-57027.08104939,0.00024058,3]
[337531960,1725764009407,876.09370136,0.00038433,2]
[337532078,1725765038417,-300.0,0.00022368,2]
[337532079,1725765038428,-24900.0,0.00022369,2]
[337532080,1725765038438,-200.0,0.000225,2]
[337532081,1725765038449,-171.258469,0.00022504,2]
[337532082,1725765038460,-161.151411,0.00022762,2]
[337532083,1725765038471,-161.151411,0.00022847,2]
[337532084,1725765038483,-161.151411,0.00022931,2]
[337532085,1725765038494,-161.151411,0.00023016,2]
[337532086,1725765038504,-161.151411,0.00023101,2]
[337532087,1725765038514,-161.151411,0.00023186,2]
[337532088,1725765038524,-161.151411,0.0002327,2]
[337532089,1725765038534,-161.151411,0.00023355,2]
[337532090,1725765038545,-161.151411,0.0002344,2]
[337532091,1725765038555,-200.0,0.000235,4]
[337532092,1725765038565,-161.151411,0.00023524,2]
[337532093,1725765038576,-161.151411,0.00023609,2]
[337532094,1725765038587,-307.7383087,0.00023692,2]
[337532095,1725765038597,-161.151411,0.00023694,2]
[337532096,1725765038605,-161.151411,0.00023779,2]
[337532097,1725765038615,-153.0,0.000238,2]
[337532098,1725765038625,-306.0,0.000238,2]
[337532099,1725765038639,-153.0,0.000238,2]
[337532100,1725765038653,-161.151411,0.00023863,2]
[337532101,1725765038664,-161.151411,0.00023948,2]
[337532102,1725765038675,-295.13501687,0.00023959,2]
[337532103,1725765038689,-704.86498313,0.00023959,2]
[337532104,1725765038699,-201.0,0.00024,2]
[337532105,1725765038712,-151.0,0.00024039,7]
[337532106,1725765038723,-151.0,0.00024039,7]
[337532107,1725765038733,-151.0,0.00024039,7]
[337532108,1725765038742,-151.0,0.00024039,7]
[337532109,1725765038752,-1438.775923,0.00024039,7]
[337532110,1725765038762,-1438.775923,0.00024039,7]
[337532111,1725765038772,-151.0,0.00024039,7]
[337532112,1725765038782,-151.0,0.00024039,7]
[337532113,1725765038792,-302.7,0.00024039,3]
[337532114,1725765038802,-500.0,0.00024048,2]
[337532115,1725765038812,-451.23038988,0.00024048,2]
[337532116,1725765038825,-48.76961012,0.00024048,2]
[337532117,1725765038837,-189.70009064,0.00024048,2]
[337532118,1725765038847,-500.0,0.00024048,2]
[337532119,1725765038857,-151.0,0.00024048,7]
[337532120,1725765038868,-151.0,0.00024048,7]
[337532121,1725765038879,-178.895141,0.00024048,7]
[337532122,1725765038888,-178.895141,0.00024048,7]
[337532123,1725765038898,-783.451732,0.00024048,7]
[337532124,1725765038908,-151.0,0.00024048,7]
[337532125,1725765038919,-574.05949474,0.00024048,7]
[337532130,1725765040509,-209.39223726,0.00024048,7]
[337532131,1725765040519,-151.0,0.00024048,7]
[337532132,1725765040529,-151.0,0.00024048,7]
[337532133,1725765040538,-151.0,0.00024048,7]
[337532134,1725765040548,-154.257466,0.00024048,7]
[337532135,1725765040558,-542.235982,0.00024048,7]
[337532136,1725765040569,-154.257466,0.00024048,7]
[337532137,1725765040579,-542.235982,0.00024048,7]
[337532138,1725765040588,-151.0,0.00024048,7]
[337532139,1725765040597,-65610.43147628,0.00024049,3]
[337532158,1725765046516,-151.0,0.00024048,7]
[337532159,1725765046525,-97177.65615772,0.00024049,3]
[337532160,1725765046535,-55296.6192406,0.00024049,3]
[337532161,1725765046544,-27131.3479389,0.00024058,3]
[337532162,1725765046556,-9216.10320677,0.00024058,3]
[337532163,1725765046565,-151.0,0.00024058,7]
[337532164,1725765046575,-151.0,0.00024058,7]
[337532165,1725765046585,-178.895141,0.00024058,7]
[337532166,1725765046595,-178.895141,0.00024058,7]
[337532167,1725765046604,-783.451732,0.00024058,7]
[337532168,1725765046614,-151.0,0.00024058,7]
[337532169,1725765046623,-783.451732,0.00024058,7]
[337532170,1725765046634,-241.030538,0.00024058,7]
[337532171,1725765046643,-151.0,0.00024058,7]
[337532172,1725765046652,-151.793792,0.00024058,7]
[337532173,1725765046661,-154.257466,0.00024058,7]
[337532174,1725765046671,-542.235982,0.00024058,7]
[337532175,1725765046681,-154.257466,0.00024058,7]
[337532176,1725765046690,-542.235982,0.00024058,7]